[Event "German Masters 2022"]
[Site "Magdeburg"]
[Date "2022.08.24"]
[Round "9.1"]
[White "Svane, Frederik"]
[Black "Keymer, Vincent"]
[Result "1/2-1/2"]
[ECO "A28"]
[WhiteElo "2521"]
[BlackElo "2686"]
[Annotator "TA"]
[PlyCount "154"]
[EventDate "2022.08.16"]
[EventType "tourn"]
[EventCountry "GER"]
[SourceTitle "playchess.com"]
[Source "ChessBase"]
[SourceQuality "1"]
[TimeControl "40/5400+30:1800+30"]

{[%evp 13,154,8,0,0,10,0,0,-9,-5,-10,-9,-10,20,0,-4,-13,-10,-12,0,-16,-7,-19,-6,-19,-8,-25,-20,-31,7,-13,-12,-43,-26,-60,-60,-59,-56,-58,-54,-75,-74,-72,-72,-72,-73,-80,-72,-75,-76,-72,-72,-80,-78,-77,-37,-42,-37,-50,-47,-54,-35,-52,-47,-52,-34,-62,-61,-153,-153,-195,-194,-195,-195,-204,-204,-202,-195,-420,-415,-420,-415,-415,-408,-366,-359,-348,-326,-319,-318,-308,-283,-276,0,-269,-219,-203,-102,-532,-532,-432,-432,-532,-532,-532,-432,-432,-432,-432,-429,-532,0,-532,-532,-532,-532,-532,-521,-160,-8,-8,-8,-24,-8,-522,-485,-114,-8,-8,0,0,0,0,0,0,0,0,0,0,0,0,0,0,0]} 1. c4 {[%emt 0:00:04]} Nf6 {[%emt 0:01:04]} 2. Nc3 {[%emt 0:00:07]} e5 {[%emt 0:00:03]} 3. Nf3 {[%emt 0:00:06]} Nc6 {[%emt 0:00:05]} 4. d3 {[%emt 0:00:05]} Bb4 {[%emt 0:01:20]} 5. Bd2 {[%emt 0:00:12]} O-O {[%emt 0:01:09]} 6. e3 {[%emt 0:00:05]} d5 {[%emt 0:06:00]} 7. cxd5 {[%emt 0:00:06]} Nxd5 {[%emt 0:00:07]} 8. Be2 {[%emt 0:00:04] A28: English Opening: Four Knights Variation.} Nxc3 {[%emt 0:10:30]} 9. bxc3 {[%emt 0:08:11]} Bd6 {[%emt 0:00:13]} 10. e4 {[%emt 0:02:33] [#]} Re8 $146 {[%emt 0:02:40]} ({Predecessor:} 10... b6 11. O-O Re8 12. d4 exd4 13. cxd4 Rxe4 14. Ng5 Rxd4 15. Qc2 Rh4 16. g3 Nd4 {0-1 (36) Lewis,A (2292)-Hanley,C (2434) Sunningdale 2008}) 11. Bg5 {[%emt 0:06:40]} Qd7 {[%emt 0:03:56]} 12. O-O {[%emt 0:00:36]} Qe6 {[%emt 0:05:21]} 13. h3 {[%emt 0:23:04]} Qg6 {[%emt 0:12:47][%cal Oc8h3]} 14. Kh1 {[%emt 0:00:06]} b6 {[%emt 0:04:23]} 15. Be3 {[%emt 0:09:27]} Bb7 {[%emt 0:13:38]} 16. Qd2 {[%emt 0:10:09]} Be7 {[%emt 0:01:54]} 17. Rad1 {[%emt 0:01:58]} Rad8 {[%emt 0:00:17]} 18. Qc2 {[%emt 0:01:02]} h6 {[%emt 0:02:37]} 19. Rd2 {[%emt 0:04:59]} Qe6 {[%emt 0:03:40]} 20. Nh2 {[%emt 0:07:06]} Bg5 {[%emt 0:00:45]} 21. Bg4 {[%emt 0:00:13]} Qe7 {[%emt 0:01:45]} 22. Nf3 {[%emt 0:02:16]} Bf6 {[%emt 0:00:19]} 23. Ne1 {[%emt 0:00:50]} Na5 {[%emt 0:03:53]} 24. f4 {[%emt 0:04:11]} c5 $1 {[%emt 0:02:14]} 25. Nf3 {[%emt 0:01:22]} Nc6 {[%emt 0:01:31]} 26. fxe5 {[%emt 0:06:26]} Nxe5 {[%emt 0:00:07]} 27. Nxe5 {[%emt 0:00:14]} Qxe5 {[%emt 0:01:27]} 28. c4 {[%emt 0:00:10]} Qc3 {[%emt 0:02:02]} 29. Qxc3 {[%emt 0:01:34]} Bxc3 {[%emt 0:00:05]} 30. Rdd1 {[%emt 0:00:05]} Bc6 {[%emt 0:00:34]} 31. Be2 {[%emt 0:00:48]} Ba4 {[%emt 0:00:45]} 32. Rc1 {[%emt 0:00:17]} Bb2 {[%emt 0:00:03]} 33. Rb1 {[%emt 0:00:06]} Bd4 {[%emt 0:00:55]} 34. Bxd4 {[%emt 0:00:56]} Rxd4 {[%emt 0:00:06]} 35. Rb2 {[%emt 0:00:17] Prevents Bc2.} Re6 {[%emt 0:01:13]} 36. Kg1 {[%emt 0:00:45]} g6 {[%emt 0:01:22]} 37. Rf3 {[%emt 0:03:21]} Kg7 {[%emt 0:02:39]} 38. Kf2 {[%emt 0:00:56]} Re5 {[%emt 0:05:56]} 39. Bf1 {[%emt 0:04:44]} f5 {[%emt 0:03:00]} 40. Re3 {[%emt 0:03:02]} (40. exf5 $15 Bc6 41. f6+ Kf8 42. Re3 Rf5+ 43. Kg1) 40... fxe4 $17 {[%emt 0:01:11]} 41. Rxe4 {[%emt 0:03:45]} Rexe4 {[%emt 0:03:19]} 42. dxe4 {[%emt 0:00:02]} Rxe4 {[%emt 0:00:09][%mdl 4096] Endgame KRB-KRB} 43. g3 {[%emt 0:06:58]} g5 {[%emt 0:05:34][%cal Bg6g5,Bg5g4][%mdl 32]} 44. Rd2 {[%emt 0:05:10]} Rd4 $1 {[%emt 0:07:19] Against Rd8} 45. Ke3 {[%emt 0:00:10]} (45. Rb2) 45... Rxd2 $19 {[%emt 0:00:03]} 46. Kxd2 {[%emt 0:00:04] KB-KB} Kf6 {[%emt 0:00:09]} 47. Ke3 {[%emt 0:01:19]} Ke5 {[%emt 0:01:59]} 48. h4 {[%emt 0:00:05]} g4 {[%emt 0:08:56]} 49. Bg2 {[%emt 0:01:22]} Bc2 {[%emt 0:01:28]} 50. Bb7 {[%emt 0:01:34]} Bf5 {[%emt 0:01:26]} 51. a3 {[%emt 0:00:35]} Bd7 {[%emt 0:03:30]} 52. Ba6 {[%emt 0:09:11] Prevents b5.} Bf5 {[%emt 0:04:03]} 53. Bb7 {[%emt 0:00:13]} Be6 {[%emt 0:00:05]} 54. Ba6 {[%emt 0:00:59]} Bd7 {[%emt 0:00:09]} (54... Kd6 $19 55. Ke4 Kd7) 55. Bb7 $2 {[%emt 0:00:36][%mdl 8192]} (55. Kd3 $17 {was the crucial defense.}) 55... b5 $1 {[%emt 0:02:27]} 56. cxb5 {[%emt 0:00:22]} Bxb5 {[%emt 0:00:04]} 57. Bc8 {[%emt 0:01:11]} h5 {[%emt 0:00:04]} 58. Bb7 {[%emt 0:01:09]} Bd7 {[%emt 0:02:11]} 59. Kd3 {[%emt 0:03:41]} Be6 {[%emt 0:00:32]} 60. Bc6 {[%emt 0:00:04]} Bf7 {[%emt 0:00:11] Inhibits Be8.} 61. Be4 {[%emt 0:00:42]} Be6 {[%emt 0:01:20] White must now prevent ...Bf5.} 62. Bc6 $1 {[%emt 0:00:03]} c4+ $1 {[%emt 0:01:23]} 63. Ke3 {[%emt 0:00:20]} Bf7 {[%emt 0:00:26] Prevents Be8.} 64. Be4 {[%emt 0:00:06] Against Bg6} Be8 {[%emt 0:00:32]} 65. Bh7 {[%emt 0:00:33] [#]} Kd5 $2 {[%emt 0:00:24]} (65... a6 $1 $17) 66. Be4+ $11 {[%emt 0:00:38]} Kc5 {[%emt 0:00:04]} 67. Bh7 {[%emt 0:01:25]} Bf7 {[%emt 0:00:04]} 68. Be4 $2 {[%emt 0:00:31][%mdl 8192] [#]} (68. Bf5 $1 $11 {and White stays safe.}) 68... c3 $1 $19 {[%emt 0:01:39] And now ...Kc4 would win.} 69. Bd3 $2 {[%emt 0:01:05]} (69. Kd3 c2 70. Kxc2 Kd4) (69. Bb1 $19 Bg8 70. Bd3) 69... a5 {[%emt 0:00:55]} ({Don't play} 69... Bb3 70. Bg6 $16) ({Better is} 69... Kd5 $17 {Threatens to win with ...Kc5.} 70. Bb1 Kc5) 70. Bb1 $1 $11 {[%emt 0:00:24] The position is equal.} Be8 {[%emt 0:00:54]} (70... Bg8 $5) 71. Bf5 {[%emt 0:00:55]} Kc4 {[%emt 0:00:31]} ({Don't do} 71... Ba4 72. Bg6 $16) 72. Be6+ $1 {[%emt 0:00:08]} Kb5 {[%emt 0:00:01] Hoping for ...Bg6.} 73. Kd3 {[%emt 0:00:31]} Ka4 {[%emt 0:00:00] Against Bb3+} 74. Kxc3 {[%emt 0:00:17]} Kxa3 {[%emt 0:00:04]} 75. Bb3 {[%emt 0:00:22]} Bg6 {[%emt 0:00:04]} 76. Be6 {[%emt 0:00:10]} Be8 {[%emt 0:00:54]} 77. Bb3 {[%emt 0:00:04]} Bg6 {[%emt 0:01:43] Weighted Error Value: White=0.28 (precise) /Black=0.14 (very precise)} 1/2-1/2

[Event "German Masters 2022"]
[Site "Magdeburg"]
[Date "2022.08.24"]
[Round "9.2"]
[White "Braun, Arik"]
[Black "Kollars, Dmitrij"]
[Result "1/2-1/2"]
[ECO "D32"]
[WhiteElo "2594"]
[BlackElo "2648"]
[Annotator "TA"]
[PlyCount "57"]
[EventDate "2022.08.16"]
[EventType "tourn"]
[EventCountry "GER"]
[SourceTitle "playchess.com"]
[Source "ChessBase"]
[SourceQuality "1"]
[TimeControl "40/5400+30:1800+30"]

{[%evp 18,57,13,12,25,22,28,16,24,18,24,0,0,0,0,0,0,0,0,0,10,0,0,0,0,0,0,0,0,0,5,9,5,4,3,0,0,0,6,0,0,0]} 1. d4 {[%emt 0:00:04]} d5 {[%emt 0:00:56]} 2. c4 {[%emt 0:00:15]} e6 {[%emt 0:00:11]} 3. Nc3 {[%emt 0:00:11]} c5 {[%emt 0:00:16]} 4. e3 {[%emt 0:02:36]} Nf6 {[%emt 0:00:36]} 5. Nf3 {[%emt 0:02:21]} a6 {[%emt 0:00:17]} 6. dxc5 {[%emt 0:01:12]} Bxc5 {[%emt 0:00:14]} 7. a3 {[%emt 0:00:12]} O-O {[%emt 0:07:56]} 8. b4 {[%emt 0:00:22]} Ba7 {[%emt 0:00:33]} 9. Bb2 {[%emt 0:01:01]} Nc6 {[%emt 0:00:34]} 10. Qc2 {[%emt 0:03:14]} d4 {[%emt 0:16:42] D40: Queen's Gambit Declined: Semi-Tarrasch with 5 e3.} 11. exd4 {[%emt 0:03:48]} Nxd4 {[%emt 0:10:00]} 12. Nxd4 {[%emt 0:00:12]} Bxd4 {[%emt 0:02:45] [#]} 13. Rd1 $146 {[%emt 0:21:46]} ({Predecessor:} 13. Be2 e5 14. O-O Be6 15. Na4 Bxb2 16. Qxb2 Qc7 17. Nc5 Bf5 18. Rfe1 Rfe8 19. Rad1 {½-½ (59) Aronian,L (2821)-Melkumyan,H (2649) Germany 2013}) 13... e5 {[%emt 0:03:34][%cal Ob7b5]} 14. Ne2 {[%emt 0:02:26][%cal Re2d4]} Re8 {[%emt 0:02:31] The position is equal.} 15. Nxd4 {[%emt 0:03:13]} exd4+ {[%emt 0:00:06]} 16. Be2 {[%emt 0:00:13]} Qe7 $1 {[%emt 0:01:33][%cal Oc8f5] [#] ...Bf5! is the strong threat.} 17. Bxd4 {[%emt 0:07:54]} Bf5 {[%emt 0:02:20]} 18. Qb2 {[%emt 0:04:25]} Rad8 {[%emt 0:02:32]} 19. Be3 {[%emt 0:02:40]} Rxd1+ {[%emt 0:01:54]} 20. Bxd1 {[%emt 0:00:39]} Bd3 {[%emt 0:04:35]} ({Much less strong is} 20... Ng4 21. Bxg4 Bxg4 22. O-O $16) 21. Be2 {[%emt 0:01:43]} Qe4 {[%emt 0:05:42]} 22. O-O {[%emt 0:00:54]} Bxc4 {[%emt 0:00:51]} 23. Bf3 {[%emt 0:04:34] This bishop pair is nice.} Qe6 {[%emt 0:00:26]} 24. Rd1 {[%emt 0:02:07]} Bd5 {[%emt 0:00:39]} 25. Be2 {[%emt 0:04:23]} Bc4 {[%emt 0:02:06]} 26. Bf3 {[%emt 0:00:39]} Bd5 {[%emt 0:03:13]} 27. Be2 {[%emt 0:00:06]} Bc4 {[%emt 0:04:10]} 28. Bf3 {[%emt 0:00:07]} Bd5 {[%emt 0:01:12]} 29. Be2 {An even fight not without its subleties.  Weighted Error Value: White=0.02 (flawless) /Black=0.01 (flawless)} 1/2-1/2

[Event "German Masters 2022"]
[Site "Magdeburg"]
[Date "2022.08.24"]
[Round "9.3"]
[White "Huschenbeth, Niclas"]
[Black "Fridman, Daniel"]
[Result "1/2-1/2"]
[ECO "C11"]
[WhiteElo "2610"]
[BlackElo "2599"]
[Annotator "TA"]
[PlyCount "83"]
[EventDate "2022.08.16"]
[EventType "tourn"]
[EventCountry "GER"]
[SourceTitle "playchess.com"]
[Source "ChessBase"]
[SourceQuality "1"]
[TimeControl "40/5400+30:1800+30"]

{[%evp 20,83,0,0,0,13,13,33,23,20,21,18,37,13,13,13,13,13,15,22,25,33,52,58,58,58,56,50,42,47,42,45,52,55,90,53,60,35,29,24,60,63,75,0,40,0,62,17,33,34,30,0,0,0,8,0,0,0,0,0,0,0,0,0,0,-33]} 1. e4 {[%emt 0:02:11]} e6 {[%emt 0:00:03]} 2. d4 {[%emt 0:00:08]} d5 {[%emt 0:00:07]} 3. Nc3 {[%emt 0:00:05]} Nf6 {[%emt 0:00:07]} 4. e5 {[%emt 0:00:32]} Nfd7 {[%emt 0:00:05]} 5. f4 {[%emt 0:00:05]} c5 {[%emt 0:00:06]} 6. Nf3 {[%emt 0:00:04]} Nc6 {[%emt 0:00:06]} 7. Be3 {[%emt 0:00:06]} cxd4 {[%emt 0:00:05]} 8. Nxd4 {[%emt 0:00:06]} Qb6 {[%emt 0:00:06]} 9. Qd2 {[%emt 0:01:22]} Qxb2 {[%emt 0:00:07]} 10. Rb1 {[%emt 0:00:08][%cal Ba1b1,Bb1b3,Bb3b7][%mdl 32]} Qa3 {[%emt 0:00:05]} 11. Bb5 {[%emt 0:00:08]} Nxd4 {[%emt 0:00:06] C11: French: Classical System: 4 e5 and 4 Bg5 dxe4.} 12. Bxd4 {[%emt 0:00:18] Black must now prevent Rb3.} ({Much weaker is} 12. Qxd4 a6 13. Bxd7+ Bxd7 14. Rxb7 Rc8 $17) 12... a6 {[%emt 0:00:06]} (12... Bb4 {feels hotter.} 13. Rb3 Qa5 14. O-O O-O) 13. Bxd7+ {[%emt 0:01:28]} Bxd7 {[%emt 0:00:06] White is slightly better.} 14. Rb3 {[%emt 0:00:12]} Qe7 {[%emt 0:00:05]} 15. Rxb7 {[%emt 0:00:04]} Qh4+ $1 {[%emt 0:00:06][%mdl 4] outshines the older 15...Rc8.} 16. Qf2 {[%emt 0:39:08]} Qxf2+ {[%emt 0:04:08]} 17. Kxf2 {[%emt 0:00:04]} Be7 {[%emt 0:00:08]} 18. Rhb1 {[%emt 0:00:05] Black should prevent Rb8+.} Bd8 {[%emt 0:01:36]} 19. Rb8 {[%emt 0:00:43]} Rxb8 {[%emt 0:00:06]} 20. Rxb8 {[%emt 0:00:04]} O-O {[%emt 0:00:08] [#] Threatens to win with ...Bh4+.} 21. Rb7 $1 {[%emt 0:00:19][%cal Bb8b7,Bb7a7,Ba7a6][%mdl 32]} Bc6 {[%emt 0:01:07]} 22. Ra7 {[%emt 0:00:05]} Ba5 {[%emt 0:00:06]} 23. Rxa6 {[%emt 0:00:08]} Bxc3 {[%emt 0:00:06]} 24. Bxc3 $14 {[%emt 0:00:03][%mdl 4096] Endgame KRB-KRB} Rc8 {[%emt 0:00:06]} 25. Ke3 {[%emt 0:00:18] [#]} g5 $146 {[%emt 0:04:19]} ({Predecessor:} 25... Bb5 26. Rb6 {½-½ (26) Prraneeth,V (2457)-Petrov,M (2534) Biel 2022}) 26. fxg5 {[%emt 0:05:17]} Bb5 {[%emt 0:00:06][%csl LRa6,LRc3]} 27. Ra3 {[%emt 0:00:04]} Rc4 {[%emt 0:00:12]} 28. Ra8+ {[%emt 0:22:15]} Kg7 {[%emt 0:00:09]} 29. Kd2 {[%emt 0:00:15]} Re4 {[%emt 0:12:39]} 30. Kc1 {[%emt 0:12:10]} Rc4 {[%emt 0:13:11]} 31. Kd2 {[%emt 0:00:33]} Re4 {[%emt 0:00:07]} 32. Kc1 {[%emt 0:02:23]} Rc4 {[%emt 0:00:20]} 33. Bb2 {[%emt 0:07:00]} Ba4 {[%emt 0:03:23]} 34. c3 {[%emt 0:00:05]} d4 {[%emt 0:03:52]} 35. Kd2 {[%emt 0:00:29]} (35. g3 $5 {[%cal Rc1d2]}) 35... dxc3+ {[%emt 0:02:15] The position is equal.} 36. Bxc3 {[%emt 0:00:02]} Rh4 $1 {[%emt 0:01:16]} 37. Ra6 {[%emt 0:08:26]} Bb5 {[%emt 0:02:48]} 38. Rb6 {[%emt 0:01:53]} Bf1 {[%emt 0:00:18]} 39. Bb4 {[%emt 0:00:36]} Rxh2 {[%emt 0:01:48]} 40. a4 {[%emt 0:00:26]} Rxg2+ {[%emt 0:00:31]} 41. Ke1 {[%emt 0:30:19]} Bc4 {[%emt 0:31:13]} 42. Be7 {[%emt 0:00:48] Weighted Error Value: White=0.11 (very precise) /Black=0.03 (flawless)} 1/2-1/2

[Event "German Masters 2022"]
[Site "Magdeburg"]
[Date "2022.08.24"]
[Round "9.4"]
[White "Svane, Rasmus"]
[Black "Engel, Luis"]
[Result "1/2-1/2"]
[ECO "E10"]
[WhiteElo "2649"]
[BlackElo "2558"]
[Annotator "TA"]
[PlyCount "159"]
[EventDate "2022.08.16"]
[EventType "tourn"]
[EventCountry "GER"]
[SourceTitle "playchess.com"]
[Source "ChessBase"]
[SourceQuality "1"]
[TimeControl "40/5400+30:1800+30"]

{[%evp 17,159,1,13,12,3,18,14,0,0,0,0,10,15,0,7,17,25,0,0,-20,-27,-49,0,0,0,0,-2,0,-9,-7,-4,-9,-6,-5,-8,-5,-3,-32,0,-6,0,0,0,0,14,14,14,8,8,8,8,8,8,8,8,8,8,8,8,8,8,0,0,0,8,8,8,8,20,20,20,20,20,20,20,20,20,20,20,20,20,20,20,14,14,14,14,12,12,12,12,12,12,12,12,12,12,12,12,12,12,12,12,12,12,12,12,0,12,12,12,12,12,12,12,12,12,12,12,0,12,0,12,12,12,5,12,0,12,12,12,5,5,5,8,8,8,8,8,8,8,8,8,8]} 1. d4 {[%emt 0:00:08]} Nf6 {[%emt 0:00:04]} 2. c4 {[%emt 0:00:13]} e6 {[%emt 0:00:03]} 3. Nf3 {[%emt 0:00:19]} d5 {[%emt 0:00:05]} 4. g3 {[%emt 0:00:18]} Bb4+ {[%emt 0:00:09]} 5. Bd2 {[%emt 0:00:11]} Be7 {[%emt 0:00:05]} 6. Bg2 {[%emt 0:00:14]} O-O {[%emt 0:00:06]} 7. O-O {[%emt 0:00:09]} c6 {[%emt 0:00:03]} 8. Bc3 {[%emt 0:00:14]} dxc4 {[%emt 0:10:57]} 9. a4 {[%emt 0:00:54]} b5 {[%emt 0:05:13]} 10. axb5 {[%emt 0:00:25]} cxb5 {[%emt 0:00:05]} 11. Ba5 {[%emt 0:00:12]} Qe8 $1 {[%emt 0:02:46]} 12. Ne5 {[%emt 0:00:22]} Nd5 {[%emt 0:00:05]} 13. b3 {[%emt 0:00:27]} Nc6 {[%emt 0:08:15]} 14. bxc4 {[%emt 0:00:37]} bxc4 {[%emt 0:00:10]} 15. e4 {[%emt 0:02:58]} Nf6 {[%emt 0:09:13]} 16. Nxc6 {[%emt 0:01:26]} Qxc6 {[%emt 0:00:32]} 17. Nc3 {[%emt 0:16:02]} Rb8 {[%emt 0:04:47]} 18. Qd2 {[%emt 0:13:15]} Rb3 {[%emt 0:04:27]} 19. Rfd1 {[%emt 0:06:08]} Bb7 {[%emt 0:07:29]} (19... Bd7 $1 $15 {deserves consideration.}) 20. d5 $11 {[%emt 0:07:37]} exd5 {[%emt 0:02:34]} 21. exd5 {[%emt 0:17:40]} Qc5 {[%emt 0:01:39]} 22. d6 {[%emt 0:04:04]} Bd8 {[%emt 0:01:03]} 23. Bxd8 {[%emt 0:00:25]} Rxd8 {[%emt 0:00:05]} 24. Bxb7 {[%emt 0:00:36]} Rxb7 {[%emt 0:00:04]} 25. Qd4 {[%emt 0:01:22]} Qxd4 {[%emt 0:04:12]} 26. Rxd4 {[%emt 0:01:33]} g6 {[%emt 0:01:03]} 27. Ra6 {[%emt 0:05:22]} Ne8 {[%emt 0:06:00]} 28. Ne4 {[%emt 0:04:59]} f5 {[%emt 0:00:38]} 29. Nc5 {[%emt 0:00:28]} Rb1+ {[%emt 0:01:05]} 30. Kg2 {[%emt 0:00:05]} c3 {[%emt 0:01:08]} 31. d7 {[%emt 0:08:29]} c2 {[%emt 0:01:51]} 32. dxe8=Q+ {[%emt 0:01:09]} Rxe8 {[%emt 0:00:04]} 33. Nd3 {[%emt 0:00:19]} Rc8 $1 {[%emt 0:00:29]} 34. Rxa7 {[%emt 0:04:55]} Rd1 {[%emt 0:00:08]} 35. Rdd7 {[%emt 0:00:22]} Rxd3 $1 {[%emt 0:00:09]} 36. Rg7+ {[%emt 0:00:04]} Kh8 {[%emt 0:00:07]} 37. Rxh7+ {[%emt 0:00:06]} Kg8 {[%emt 0:00:07]} 38. Rag7+ {[%emt 0:00:39]} Kf8 {[%emt 0:00:05]} 39. Rf7+ {[%emt 0:00:41]} Kg8 {[%emt 0:00:07]} ({Don't play} 39... Ke8 40. Rb7 Rd7 41. Rh8+ Ke7 42. Rxc8 $14) 40. Rfg7+ {[%emt 0:00:57]} ({Resist} 40. Rhg7+ Kh8 $16) 40... Kf8 {[%emt 0:00:06]} 41. Rc7 {[%emt 0:32:27]} Rxc7 {[%emt 0:33:20]} 42. Rxc7 {[%emt 0:00:11]} g5 {[%emt 0:03:15]} (42... Rd2 {keeps more tension.} 43. Kf3 f4 44. gxf4 Rd3+) 43. Rxc2 {[%emt 0:00:40]} Kg7 {[%emt 0:00:04]} 44. h3 {[%emt 0:00:00]} Rd4 {[%emt 0:00:00]} 45. Rc3 {[%emt 0:00:00]} Kg6 {[%emt 0:00:00]} 46. Rc1 {[%emt 0:00:00]} Ra4 {[%emt 0:00:00]} 47. Re1 {[%emt 0:00:00]} Kf6 {[%emt 0:00:00]} 48. Rf1 {[%emt 0:00:00]} Ra2 {[%emt 0:00:00]} 49. Rh1 {[%emt 0:00:00]} Kg6 {[%emt 0:00:00]} 50. h4 {[%emt 0:00:00]} Ra4 {[%emt 0:00:00]} 51. hxg5 {[%emt 0:00:00]} Kxg5 {[%emt 0:00:00]} 52. f4+ {[%emt 0:00:00]} Kg6 {[%emt 0:00:00]} 53. Rd1 {[%emt 0:00:00]} Ra8 {[%emt 0:00:00]} 54. Rd6+ {[%emt 0:00:00]} Kg7 {[%emt 0:00:00]} 55. Rd3 {[%emt 0:00:00]} Kg6 {[%emt 0:00:00]} 56. Kf3 $1 {[%emt 0:00:00]} Ra1 {[%emt 0:00:00]} 57. Rd6+ {[%emt 0:00:00]} Kg7 {[%emt 0:00:00]} 58. Ke3 {[%emt 0:00:00]} Rg1 {[%emt 0:00:00]} 59. Kf2 {[%emt 0:00:00]} Ra1 {[%emt 0:00:00]} 60. Rd2 {[%emt 0:00:00]} Kg6 {[%emt 0:00:00]} 61. Kg2 {[%emt 0:00:00]} Ra8 {[%emt 0:00:00]} 62. Rd6+ {[%emt 0:00:00]} Kg7 {[%emt 0:00:00]} 63. Re6 {[%emt 0:00:00]} Kf7 {[%emt 0:00:00]} 64. Rh6 {[%emt 0:00:00]} Kg7 {[%emt 0:00:00]} 65. Rd6 {[%emt 0:00:00]} Kf7 {[%emt 0:00:00]} 66. Kf2 {[%emt 0:00:00]} Ra1 {[%emt 0:00:00]} 67. Rd3 {[%emt 0:00:00]} Kg6 {[%emt 0:00:00]} 68. Ke3 {[%emt 0:00:00]} Re1+ {[%emt 0:00:00]} 69. Kf3 {[%emt 0:00:00]} Ra1 {[%emt 0:00:00]} 70. Rc3 {[%emt 0:00:00]} Ra2 {[%emt 0:00:00]} 71. Ke3 {[%emt 0:00:00]} Ra4 {[%emt 0:00:00]} 72. Rc6+ {[%emt 0:00:00]} Kg7 {[%emt 0:00:00]} 73. Kd3 $1 {[%emt 0:06:31]} Ra3+ {[%emt 0:00:00]} 74. Kd4 {[%emt 0:02:56]} Rxg3 {[%emt 0:00:00]} 75. Ke5 {[%emt 0:00:07]} Rg6 {[%emt 0:00:00]} 76. Rc7+ {[%emt 0:03:13]} Kf8 {[%emt 0:00:00]} 77. Kxf5 {[%emt 0:00:07]} Ra6 {[%emt 0:00:00]} 78. Kg5 {[%emt 0:00:54]} Rb6 {[%emt 0:00:00]} 79. f5 {[%emt 0:00:06]} Ra6 {[%emt 0:00:00]} 80. Rb7 {[%emt 0:00:12]} 1/2-1/2